bitfinex/quotes_ETHUSD_20241009
["timestamp","ask_amount","ask_price","bid_price","bid_amount"]
[1728446040530,8.87571775,2449.1,2449.0,0.7224026]
[1728446040697,11.44917877,2449.1,2449.0,0.7224026]
[1728446040892,8.87571775,2449.1,2449.0,0.7224026]
[1728446041117,11.44917297,2449.1,2449.0,0.7224026]
[1728446041435,11.44917945,2449.1,2449.0,0.7224026]
[1728446043019,8.87571775,2449.1,2449.0,0.7224026]
[1728446044999,11.44905928,2449.1,2449.0,0.7224026]
[1728446045209,11.44911099,2449.1,2449.0,0.7224026]
[1728446045413,8.87571775,2449.1,2449.0,0.7224026]
[1728446046221,11.44908157,2449.1,2449.0,0.7224026]
[1728446046420,8.87571775,2449.1,2449.0,0.7224026]
[1728446046845,11.44909985,2449.1,2449.0,0.7224026]
[1728446047020,8.87571775,2449.1,2449.0,0.7224026]
[1728446047914,11.44909148,2449.1,2449.0,0.7224026]
[1728446051241,11.44897575,2449.1,2449.0,0.7224026]
[1728446051943,8.87571775,2449.1,2449.0,0.7224026]
[1728446052148,11.44904436,2449.1,2449.0,0.7224026]
[1728446052651,8.87571775,2449.1,2449.0,0.7224026]
[1728446053254,11.44900889,2449.1,2449.0,0.7224026]
[1728446056346,11.44892376,2449.1,2449.0,0.7224026]
[1728446057247,4.14393488,2449.1,2449.0,1.4742026]
[1728446059682,4.14393488,2449.1,2449.0,0.7224026]
[1728446059974,12.59318577,2449.1,2449.0,0.7224026]
[1728446061068,11.17467251,2449.1,2449.0,0.7224026]
[1728446061467,12.59219613,2449.1,2449.0,0.7224026]
[1728446061843,14.71988241,2449.1,2449.0,0.7224026]
[1728446062387,14.71899286,2449.1,2449.0,0.7224026]
[1728446063543,12.59130658,2449.1,2449.0,0.7224026]
[1728446064169,14.71899286,2449.1,2449.0,0.7224026]
[1728446064365,12.59130658,2449.1,2449.0,0.7224026]
[1728446065377,9.04698623,2449.1,2449.0,0.7224026]
[1728446065882,14.71709861,2449.1,2449.0,0.7224026]
[1728446066180,9.04698623,2449.1,2449.0,0.7224026]
[1728446071668,10.19171775,2449.1,2449.0,0.7224026]
[1728446072561,11.4568385,2449.1,2449.0,0.7224026]
[1728446072772,12.42262137,2449.1,2449.0,0.7224026]
[1728446073164,9.42571775,2449.1,2449.0,0.7224026]
[1728446077210,11.99444347,2449.1,2449.0,0.7224026]
[1728446077705,9.42571775,2449.1,2449.0,0.7224026]
[1728446077872,11.99453057,2449.1,2449.0,0.7224026]
[1728446078476,9.42571775,2449.1,2449.0,0.7224026]
[1728446082791,10.24131775,2449.1,2449.0,0.7224026]
[1728446094189,13.23932954,2449.1,2449.0,0.7224026]
[1728446094393,10.24131775,2449.1,2449.0,0.7224026]
[1728446096946,9.42571775,2449.1,2449.0,0.7224026]
[1728446097730,12.42425532,2449.1,2449.0,0.7224026]
[1728446098042,9.42571775,2449.1,2449.0,0.7224026]
[1728446098418,12.42425532,2449.1,2449.0,0.7224026]
[1728446098941,9.42571775,2449.1,2449.0,0.7224026]
[1728446099331,12.42425532,2449.1,2449.0,0.7224026]
[1728446099942,9.42571775,2449.1,2449.0,0.7224026]
[1728446100320,12.42425532,2449.1,2449.0,0.7224026]
[1728446100528,9.42571775,2449.1,2449.0,0.7224026]
[1728446101106,12.42508612,2449.1,2449.0,0.7224026]
[1728446104432,9.42571775,2449.1,2449.0,0.7224026]
[1728446104945,12.42704013,2449.1,2449.0,0.7224026]
[1728446108853,10.69525726,2449.1,2449.0,0.7224026]
[1728446109154,12.42704013,2449.1,2449.0,0.7224026]
[1728446109358,9.42571775,2449.1,2449.0,0.7224026]
[1728446109539,7.69393488,2449.1,2449.0,0.7224026]
[1728446109859,8.44886646,2449.1,2449.0,1.4987026]
[1728446111622,11.44886646,2449.1,2449.0,1.4987026]
[1728446114319,11.39830703,2449.1,2449.0,1.4987026]
[1728446119559,11.39856743,2449.1,2449.0,1.4987026]
[1728446119956,8.82571775,2449.1,2449.0,1.4987026]
[1728446121173,11.39856743,2449.1,2449.0,1.4987026]
[1728446121778,8.82571775,2449.1,2449.0,1.4987026]
[1728446122636,11.39856743,2449.1,2449.0,1.4987026]
[1728446122836,11.33776255,2449.1,2449.0,1.4987026]
[1728446123074,11.39120136,2449.1,2449.0,1.4987026]
[1728446123579,8.81835168,2449.1,2449.0,1.4987026]
[1728446124073,11.39120136,2449.1,2449.0,1.4987026]
[1728446124377,11.39072211,2449.1,2449.0,1.4987026]
[1728446124879,8.81835168,2449.1,2449.0,1.4987026]
[1728446125182,7.08656881,2449.1,2449.0,1.4987026]
[1728446125338,6.22995433,2449.1,2449.0,1.4987026]
[1728446125538,4.08656881,2449.1,2449.0,1.4987026]
[1728446126177,5.80093486,2449.1,2449.0,1.4987026]
[1728446127138,6.22995433,2449.1,2449.0,1.4987026]
[1728446127595,4.08656881,2449.1,2449.0,1.4987026]
[1728446127778,5.80075089,2449.1,2449.0,1.4987026]
[1728446130281,7.53253376,2449.1,2449.0,1.4987026]
[1728446131043,10.96072105,2449.1,2449.0,0.7224026]
[1728446131243,12.76679492,2449.1,2449.0,0.7224026]
[1728446131547,10.19595168,2449.1,2449.0,0.7224026]
[1728446132681,13.19526879,2449.1,2449.0,0.7224026]
[1728446133087,10.19595168,2449.1,2449.0,0.7224026]
[1728446135463,9.36557287,2448.7,2448.6,0.74884045]
[1728446135669,12.73721473,2448.7,2448.6,0.74884045]
[1728446135890,10.21350431,2448.7,2448.6,0.74884045]
[1728446136097,12.78465114,2448.7,2448.6,0.74884045]
[1728446136399,10.21350431,2448.7,2448.6,0.74884045]
[1728446137164,21.90874882,2448.7,2448.6,0.74884045]
[1728446137507,8.46523,2448.2,2448.1,0.77527829]
[1728446137709,10.19701287,2448.2,2448.1,0.77527829]
[1728446138002,10.24412009,2448.2,2448.1,0.77527829]
[1728446138163,12.81345809,2448.2,2448.1,0.77527829]
[1728446138359,10.24412009,2448.2,2448.1,0.77527829]
[1728446139301,13.23967467,2448.2,2448.1,0.77527829]
[1728446139800,13.23965055,2448.2,2448.1,0.77527829]
[1728446140564,10.24412009,2448.2,2448.1,0.77527829]
[1728446140759,10.44841997,2448.2,2448.1,0.77527829]
[1728446142191,13.01176105,2448.2,2448.1,0.77527829]
[1728446143120,10.44841997,2448.2,2448.1,0.77527829]
[1728446148313,12.58060662,2448.2,2448.1,0.77527829]
[1728446148714,12.58058222,2448.2,2448.1,0.77527829]
[1728446150789,10.96855465,2448.2,2448.1,0.77527829]
[1728446151038,8.4167,2447.8,2447.7,0.80171614]
[1728446151229,8.4167,2447.8,2447.3,0.82815399]
[1728446151230,4.08596,2447.4,2447.3,0.82815399]
[1728446151383,10.14914287,2447.4,2447.3,0.82815399]
[1728446151585,10.19370681,2447.4,2447.3,0.82815399]
[1728446152411,10.14354287,2447.1,2447.0,0.0750334]
[1728446152802,10.18778643,2447.1,2447.0,0.0750334]
[1728446154503,12.21617905,2447.1,2447.0,0.0750334]
[1728446155212,12.41925506,2447.1,2447.0,0.0750334]
[1728446162030,11.64395506,2447.1,2447.0,0.0750334]
[1728446162335,8.09395506,2447.1,2447.0,0.0750334]
[1728446162702,4.33377957,2447.1,2447.0,0.0750334]
[1728446162905,4.13070356,2447.1,2447.0,0.8481334]
[1728446164265,0.04424356,2447.1,2447.0,0.8481334]
[1728446165519,0.04424356,2447.1,2447.0,1.42707492]
[1728446165719,4.28662391,2447.6,2447.1,0.8016]
[1728446166023,4.08602,2447.4,2447.1,0.8016]
[1728446166926,4.08572,2447.6,2447.1,0.8016]
[1728446167325,4.08591,2447.5,2447.1,0.8016]
[1728446168644,4.08597,2447.4,2447.1,0.8016]
[1728446168964,8.17151,2447.6,2447.1,0.8016]
[1728446169318,4.0858,2447.5,2447.1,0.8016]
[1728446169515,4.12898035,2447.5,2447.1,0.8016]
[1728446169930,0.04318035,2447.5,2447.1,0.8016]
[1728446170257,0.04318035,2447.5,2447.3,0.7631]
[1728446171561,0.04318035,2447.5,2447.4,4.87836]
[1728446171773,4.08506,2448.0,2447.5,0.7924]
[1728446171985,8.16944,2448.2,2447.6,0.7924]
[1728446172195,4.08471,2448.2,2447.7,0.487813]
[1728446172488,8.16947,2448.2,2447.8,0.7924]
[1728446172867,4.08497,2448.0,2447.8,0.7924]
[1728446175491,4.08471,2448.2,2447.8,0.7924]
[1728446175784,8.16947,2448.2,2447.8,0.7924]
[1728446176152,4.08492,2448.1,2447.8,0.7924]
[1728446177710,4.08471,2448.2,2447.8,0.7924]
[1728446178291,4.08481,2448.1,2447.8,0.7924]
[1728446179000,4.085,2448.0,2447.8,0.7924]
[1728446179214,8.17008,2448.0,2447.8,0.7924]
[1728446179574,4.08513,2447.9,2447.8,0.7924]
[1728446181606,4.085,2448.0,2447.8,0.7924]
[1728446182180,4.08487,2448.1,2447.8,0.7924]
[1728446182384,4.08471,2448.2,2447.8,0.7924]
[1728446182584,4.08498,2448.0,2447.8,0.7924]
[1728446182908,4.08513,2447.9,2447.8,0.7924]
[1728446184507,4.12739998,2447.9,2447.8,0.7924]
[1728446185304,0.04226998,2447.9,2447.8,0.7924]
[1728446187201,4.12739998,2447.9,2447.8,0.7924]
[1728446192676,0.04226998,2447.9,2447.8,0.7924]
[1728446201387,4.12739998,2447.9,2447.8,0.7924]
[1728446201600,0.04226998,2447.9,2447.8,0.7924]
[1728446204538,4.12739998,2447.9,2447.8,0.7924]
[1728446205125,0.04226998,2447.9,2447.8,0.7924]
[1728446208238,4.08482,2448.1,2447.8,0.7924]
[1728446208447,0.04192661,2447.9,2447.8,0.7924]
[1728446208628,4.08482,2448.1,2447.8,0.7924]
[1728446209168,0.04188687,2448.0,2447.8,0.7924]
[1728446209661,4.12684687,2448.0,2447.8,0.7924]
[1728446209860,8.21194687,2448.0,2447.8,0.7924]
[1728446210068,0.04188687,2448.0,2447.8,0.7924]
[1728446210378,5.78848027,2448.2,2447.8,0.7924]
[1728446210533,0.04184416,2447.9,2447.8,1.316184]
[1728446210733,5.78848027,2448.2,2447.9,0.8284]
[1728446213366,1.70379027,2448.1,2447.9,0.8284]
[1728446213954,1.70379027,2448.2,2447.9,0.8284]
[1728446214576,0.04218679,2448.1,2447.9,0.8284]
[1728446214759,0.04218679,2448.1,2447.9,1.3685614]
[1728446215157,1.74597706,2448.1,2447.9,1.3685614]
[1728446216657,5.83077706,2448.1,2447.9,0.8284]
[1728446216964,5.78875027,2448.0,2447.9,0.8284]
[1728446217171,4.08517,2447.9,2447.5,0.7881]
[1728446217335,5.79877365,2447.9,2447.5,1.275496]
[1728446217535,0.04188019,2447.8,2447.5,1.275496]
[1728446219076,0.04188019,2447.8,2447.2,8.66871734]
[1728446219077,4.08555,2447.7,2447.2,1.28441734]
[1728446219753,0.04158371,2447.5,2447.2,1.28441734]
[1728446219941,4.12738371,2447.5,2447.2,1.28441734]
[1728446220142,0.04158371,2447.5,2447.2,1.28441734]
[1728446220986,5.84099736,2447.5,2447.2,0.7881]
[1728446222253,0.04158371,2447.5,2447.2,0.7881]
[1728446225752,4.12738371,2447.5,2447.2,0.7881]
[1728446229446,0.04158371,2447.5,2447.2,0.7881]
[1728446229645,4.08555,2447.7,2447.2,4.87437]
[1728446230055,0.0409617,2447.6,2447.2,4.87437]
[1728446230384,0.0409617,2447.6,2447.3,0.812]
[1728446230790,0.0409617,2447.6,2447.3,5.387957]
[1728446231284,5.79894365,2447.8,2447.4,0.812]
[1728446231754,0.04106847,2447.7,2447.4,0.812]
[1728446231952,4.08534,2447.8,2447.4,0.812]
[1728446232156,0.0409617,2447.6,2447.4,0.812]
[1728446232358,5.79882365,2447.9,2447.5,0.5387957]
[1728446232686,0.04085492,2447.5,2447.4,5.81895113]
[1728446232891,4.08516,2447.9,2447.4,4.08595]
[1728446233220,4.08516,2447.9,2447.4,4.86775]
[1728446233495,0.04117523,2447.8,2447.5,0.5357577]
[1728446238595,5.79855365,2448.1,2447.6,0.7679]
[1728446238791,0.0410845,2447.7,2447.6,4.85348]
[1728446239007,4.08494,2448.1,2447.6,5.97429088]
[1728446239174,0.0410845,2447.7,2447.6,5.97429088]
[1728446239357,4.08494,2448.1,2447.6,5.97429088]
[1728446239560,0.0410845,2447.7,2447.6,5.97429088]
[1728446239793,4.08494,2448.1,2447.6,5.97429088]
[1728446240003,4.08494,2448.1,2447.7,0.65100486]
[1728446242264,8.16986,2448.1,2447.7,0.65100486]
[1728446242496,8.16986,2448.1,2447.6,5.97429088]
[1728446242704,4.08492,2448.1,2447.6,5.97429088]
[1728446244010,1.71360365,2448.2,2447.7,0.8322]
[1728446244303,4.08466,2448.2,2447.7,0.8322]
[1728446244691,0.04156679,2448.1,2447.7,0.8322]
[1728446244891,0.04156679,2448.1,2447.8,1.01240309]
[1728446245067,0.04156679,2448.1,2447.9,0.7625]
[1728446245411,2.13998439,2448.4,2448.1,4.08467]
[1728446245412,1.71360365,2448.4,2448.1,4.08467]
[1728446245718,1.71360365,2448.4,2448.1,4.84717]
[1728446245880,1.71360365,2448.4,2448.1,1.655713]
[1728446246206,4.08413,2448.5,2448.1,1.655713]
[1728446246906,1.71360365,2448.6,2448.1,1.655713]
[1728446247110,9.88139365,2448.7,2448.1,5.740483]
[1728446247626,4.084,2448.6,2448.1,1.655713]
[1728446247919,5.79760365,2448.6,2448.2,0.5740543]
[1728446248122,4.084,2448.6,2448.3,0.7869]
[1728446248988,5.79749365,2448.7,2448.3,0.7869]
[1728446249387,9.88142365,2448.7,2448.3,0.7869]
[1728446249723,4.08397,2448.6,2448.3,0.7869]
[1728446253287,0.04052946,2448.5,2448.3,0.7869]
[1728446255011,8.16779,2448.7,2448.3,1.33147143]
[1728446255227,0.04042276,2448.4,2448.3,1.33147143]
[1728446255404,4.08401,2448.6,2448.3,0.7869]
[1728446255601,0.04042276,2448.4,2448.3,0.7869]
[1728446255806,4.08401,2448.6,2448.3,0.7869]
[1728446256047,0.04042276,2448.4,2448.3,0.7869]
[1728446256202,4.08401,2448.6,2448.3,0.7869]
[1728446256403,0.04042276,2448.4,2448.3,0.7869]
[1728446256622,4.08421,2448.5,2448.3,0.7869]
[1728446256915,0.04046199,2448.4,2448.3,0.7869]
[1728446259328,4.08458,2448.3,2447.9,0.8089]
[1728446259646,4.08458,2448.3,2448.0,0.48941]
[1728446259852,0.03978277,2448.2,2448.0,0.48941]
[1728446260145,4.08458,2448.3,2448.0,0.48941]
[1728446260440,0.03963217,2448.1,2448.0,0.48941]
[1728446260608,4.08458,2448.3,2448.0,0.48941]
[1728446260816,0.03963217,2448.1,2447.8,4.0852]
[1728446261034,4.08458,2448.3,2447.8,0.8089]
[1728446261509,0.03978036,2448.2,2447.8,0.8089]
[1728446261713,4.08458,2448.3,2447.8,0.8089]
[1728446261906,0.03978036,2448.2,2447.9,0.489424]
[1728446262131,4.08458,2448.3,2447.9,0.489424]
[1728446262406,0.03967364,2448.1,2447.9,0.489424]
[1728446262744,0.03952302,2448.0,2447.9,0.489424]
[1728446262941,4.08458,2448.3,2447.9,0.489424]
[1728446263148,0.03952302,2448.0,2447.9,0.489424]
[1728446263347,8.16916,2448.3,2447.9,0.489424]
[1728446263533,0.03952302,2448.0,2447.9,0.489424]
[1728446263701,8.16916,2448.3,2447.9,0.489424]
[1728446263907,0.03978036,2448.2,2447.9,0.489424]
[1728446264124,8.16916,2448.3,2447.9,0.489424]
[1728446264332,0.03967364,2448.1,2447.8,0.8089]
[1728446264536,4.08465,2448.2,2447.8,0.8089]
[1728446264750,4.08458,2448.3,2448.0,1.73300113]
[1728446264905,4.08389,2448.7,2448.3,0.8089]
[1728446265307,8.16717,2448.9,2448.4,0.66265311]
[1728446265544,4.08357,2448.9,2448.4,0.66265311]
[1728446266032,8.16713,2448.9,2448.4,0.66265311]
[1728446266412,8.16713,2448.9,2448.5,0.7907]
[1728446267027,4.08356,2448.9,2448.5,0.7907]
[1728446267231,4.08356,2448.9,2448.6,0.31863542]
[1728446269148,8.1665,2449.1,2448.6,0.31863542]
[1728446269343,4.0833,2449.0,2448.7,0.8309]
[1728446269556,4.08322,2449.1,2448.7,0.8309]
[1728446269722,8.16647,2449.1,2448.7,0.8309]
[1728446270137,4.08331,2449.0,2448.7,0.8309]
[1728446271654,4.08322,2449.1,2448.7,0.8309]
[1728446272563,8.2525,2449.3,2448.7,4.91464]
[1728446272564,4.08288,2449.3,2448.7,4.91464]
[1728446272769,4.08288,2449.3,2448.8,1.10502266]
[1728446272915,8.16578,2449.3,2448.8,1.10502266]
[1728446273115,4.08306,2449.2,2448.8,1.10502266]
[1728446273311,4.08297,2449.2,2448.8,1.10502266]
[1728446273521,4.08297,2449.2,2448.9,0.803]
[1728446275758,4.08315,2449.1,2448.9,0.803]
[1728446278158,4.08315,2449.1,2448.8,1.10502266]
[1728446278342,4.08329,2449.0,2448.7,0.7767]
[1728446278937,4.08347,2448.9,2448.7,0.7767]
[1728446280959,8.16707,2448.9,2448.7,0.7767]
[1728446281126,4.08347,2448.9,2448.7,0.7767]
[1728446281588,8.16705,2448.9,2448.7,0.7767]
[1728446281868,4.08347,2448.9,2448.7,0.7767]
[1728446282462,1.71360365,2449.3,2448.3,3.0]
[1728446282711,2.99206634,2449.9,2449.4,4.08261]
[1728446282959,2.56462829,2450.2,2449.7,0.8002]
[1728446282960,2.13719024,2450.2,2449.7,0.8002]
[1728446283144,1.73300113,2450.3,2449.2,4.08289]
[1728446283145,4.86133,2449.9,2449.3,0.8002]
[1728446283658,4.08197,2449.8,2449.3,0.8002]
[1728446283824,4.86132,2449.9,2449.3,0.8002]
[1728446284665,8.94326,2449.9,2449.3,0.8002]
[1728446284839,6.59432113,2449.9,2449.3,0.8002]
[1728446285039,8.16441,2449.7,2449.0,0.8113]
[1728446285343,8.16441,2449.7,2448.9,3.0]
[1728446285344,4.8345,2450.5,2449.9,0.8113]
[1728446285776,4.08114,2450.3,2449.9,0.8113]
[1728446286273,4.8345,2450.5,2449.9,0.8113]
[1728446286274,4.081,2450.4,2449.9,0.8113]
[1728446286488,0.89155,2450.4,2449.9,0.8113]
[1728446286659,4.0809,2450.5,2449.9,0.8113]
[1728446287195,8.16183,2450.5,2449.9,0.8113]
[1728446287396,4.0809,2450.5,2449.9,0.8113]
[1728446287893,4.08054,2450.7,2449.9,4.89308]
[1728446288052,4.0808,2450.5,2450.1,0.7569]
[1728446288877,8.16175,2450.5,2450.1,0.7569]
[1728446289792,4.85715,2450.4,2449.8,0.8054]
[1728446290151,4.08114,2450.3,2449.8,0.8054]
[1728446290483,4.0813,2450.2,2449.8,0.8054]
[1728446291355,4.08114,2450.3,2449.8,4.88734]
[1728446291679,4.08098,2450.4,2449.8,4.88734]
[1728446293447,4.08098,2450.4,2449.8,5.784279]
[1728446295654,4.08114,2450.3,2449.8,1.702339]
[1728446296279,4.08087,2450.5,2449.9,4.08179]
[1728446296446,8.16179,2450.5,2449.9,4.08179]
[1728446297600,4.08098,2450.4,2449.9,4.08179]
[1728446297763,4.08175,2450.0,2449.5,0.8175]
[1728446298797,4.08183,2449.9,2449.5,0.8175]
[1728446298975,4.08183,2449.9,2449.3,4.08267]
[1728446298976,4.08183,2449.9,2449.3,4.86507]
[1728446299184,4.08183,2449.9,2449.4,0.486507]
[1728446300080,4.08198,2449.8,2449.4,0.486507]
[1728446301814,4.08183,2449.9,2449.3,0.7824]
[1728446302024,4.08223,2449.7,2449.3,0.7824]
[1728446304470,4.08185,2449.9,2449.3,0.7824]
[1728446304813,8.16377,2449.9,2449.3,4.86519]
[1728446304985,8.16377,2449.9,2449.3,5.760012]
[1728446305515,4.08199,2449.8,2449.3,5.760012]
[1728446306281,4.08185,2449.9,2449.3,5.760012]
[1728446306487,4.08198,2449.8,2449.3,5.760012]
[1728446306689,4.08198,2449.8,2449.3,1.677222]
[1728446306890,4.08216,2449.7,2449.3,0.7824]
[1728446307076,4.08248,2449.5,2449.3,0.7824]
[1728446307272,4.08234,2449.6,2449.3,0.7824]
[1728446310878,4.08216,2449.7,2449.3,0.7824]
[1728446312119,4.08246,2449.5,2449.3,0.7824]
[1728446312624,8.16501,2449.5,2449.3,0.7824]
[1728446312923,8.16505,2449.5,2448.9,4.08336]
[1728446313234,4.08305,2449.2,2449.0,0.708336]
[1728446313430,4.08305,2449.2,2448.5,4.08401]
[1728446313431,4.08305,2449.2,2448.8,0.7646]
[1728446313718,4.08314,2449.1,2448.8,0.7646]
[1728446313923,4.08339,2449.0,2448.5,0.8278]
[1728446314426,4.08314,2449.1,2448.6,0.562054]
[1728446314631,4.08314,2449.1,2448.5,4.91192]
[1728446314830,4.08314,2449.1,2448.5,8.99595]
[1728446315034,4.08314,2449.1,2448.5,4.91183]
[1728446316352,0.762,2449.0,2448.2,0.8165]
[1728446316640,4.08372,2448.8,2448.2,4.90109]
[1728446317525,4.08387,2448.7,2448.2,0.8165]
[1728446317836,4.084,2448.6,2448.2,0.8165]
[1728446318207,4.084,2448.6,2448.3,0.490127]
[1728446320735,8.1675,2448.8,2448.4,0.8321]
[1728446321119,4.08372,2448.8,2448.4,0.8321]
[1728446328110,4.08337,2449.0,2448.4,0.8321]
[1728446328311,4.08337,2449.0,2448.4,4.91635]
[1728446328649,4.08337,2449.0,2448.5,0.5406477]
[1728446328845,8.16676,2449.0,2448.5,0.5406477]
[1728446329359,4.08323,2449.1,2448.6,0.8228]
[1728446329559,4.08331,2449.0,2448.6,0.8228]
[1728446329723,4.08331,2449.0,2448.7,0.54474177]
[1728446332267,4.08331,2449.0,2448.6,0.8228]
[1728446333632,4.08276,2449.4,2448.9,0.7775]
[1728446333853,4.08282,2449.3,2448.9,0.7775]
[1728446334062,4.0828,2449.3,2448.9,0.7775]
[1728446334236,4.0828,2449.3,2449.0,0.486111]
[1728446335458,4.08275,2449.4,2449.0,0.486111]
[1728446335659,4.08275,2449.4,2449.1,0.7775]
[1728446336843,4.08239,2449.6,2449.1,0.7775]
[1728446337060,4.08203,2449.8,2449.2,0.7775]
[1728446337366,4.08229,2449.7,2449.3,0.486062]
[1728446339364,4.0823,2449.6,2449.3,0.486062]
[1728446339869,4.0827,2449.4,2449.2,0.7775]
[1728446342667,4.08279,2449.3,2449.2,0.7775]
[1728446343243,4.08264,2449.4,2448.9,0.7631]
[1728446343444,4.08307,2449.2,2448.9,0.7631]
[1728446343767,4.08282,2449.3,2448.9,0.7631]
[1728446343972,4.08282,2449.3,2448.9,1.247778]
[1728446344338,0.42681633,2449.6,2449.0,0.7631]
[1728446344339,4.50920633,2449.6,2449.0,0.7631]
[1728446344731,4.08249,2449.5,2449.0,0.7631]
[1728446345739,4.08273,2449.4,2449.0,0.7631]
[1728446345935,4.08249,2449.5,2449.0,0.7631]
[1728446345936,4.08281,2449.3,2449.0,1.26262305]
[1728446346254,4.08297,2449.2,2449.0,0.7631]
[1728446348437,8.1657,2449.3,2449.0,0.7631]
[1728446349163,4.08296,2449.2,2449.0,0.7631]
[1728446350442,4.08313,2449.1,2449.0,0.7631]
[1728446350638,4.0833,2449.0,2448.7,0.7919]
[1728446350880,4.0833,2449.0,2448.7,1.55436677]
[1728446351734,4.0833,2449.0,2448.7,0.7919]
[1728446352173,8.16671,2449.0,2448.7,0.7919]
[1728446352567,4.0833,2449.0,2448.7,0.7919]
[1728446355969,4.0822,2449.7,2449.1,4.08313]
[1728446356172,0.20193903,2449.6,2449.3,0.824]
[1728446356982,8.16448,2449.7,2449.3,0.824]
[1728446357745,4.0822,2449.7,2449.3,0.824]
[1728446360080,8.16379,2449.9,2449.3,0.824]
[1728446360281,4.08197,2449.8,2449.4,0.490695]
[1728446363039,4.08197,2449.8,2449.5,0.8298]
[1728446363173,8.16379,2449.9,2449.5,0.8298]
[1728446363373,8.16379,2449.9,2449.5,1.3701275]
[1728446363562,4.082,2449.8,2449.5,1.3701275]
[1728446366602,4.08214,2449.7,2449.5,1.3701275]
[1728446366813,4.08214,2449.7,2449.5,0.8298]
[1728446368472,4.08188,2449.9,2449.5,0.8298]
[1728446368906,4.08215,2449.7,2449.5,0.8298]
[1728446369969,0.11,2450.0,2449.5,0.8298]
[1728446372382,0.9065,2450.1,2449.5,0.8298]
[1728446374018,0.55,2450.0,2449.0,0.8234]
[1728446374320,0.7944,2449.9,2449.0,0.8234]
[1728446374525,0.7944,2449.9,2449.1,0.8234]
[1728446376325,0.7944,2449.9,2449.3,0.8047]
[1728446376487,0.7944,2449.9,2449.4,0.25352066]
[1728446380337,0.11,2450.1,2449.5,0.8075]
[1728446381504,0.55,2450.0,2449.5,0.8075]
[1728446385515,0.7842,2449.9,2449.2,0.7818]
[1728446391226,2.51470656,2449.9,2449.2,0.7818]
[1728446391528,3.38895953,2449.9,2449.2,0.7818]
[1728446391733,1.73050656,2449.3,2448.8,0.7996]
[1728446400480,2.51540656,2449.1,2448.1,0.7649]
[1728446400687,2.51540656,2449.1,2448.3,0.8239]
[1728446405072,4.08353,2448.9,2448.3,0.8239]
[1728446405483,4.08353,2448.9,2448.3,4.0844]
[1728446405657,4.08353,2448.9,2448.4,0.8156]
[1728446406282,4.08364,2448.8,2448.4,0.8156]
[1728446406886,4.08353,2448.9,2448.4,0.8156]
[1728446407063,4.08353,2448.9,2448.6,0.8156]
[1728446409195,4.08353,2448.9,2448.6,0.8156]
[1728446409599,4.08353,2448.9,2448.6,2.8156]
[1728446411868,4.08315,2449.1,2448.7,0.7749]
[1728446412066,4.08289,2449.3,2448.8,0.7749]
[1728446412306,4.0833,2449.0,2448.8,0.7749]
[1728446412635,4.08328,2449.1,2448.8,1.05239]
[1728446412929,4.08328,2449.1,2448.9,0.7865]
[1728446413266,4.08323,2449.1,2448.9,0.7865]
[1728446413514,8.16646,2449.1,2448.9,0.7865]
[1728446413681,4.08323,2449.1,2448.9,0.7865]
[1728446414510,8.16583,2449.3,2448.9,0.7865]
[1728446414803,11.37264,2449.4,2448.9,0.7865]
[1728446415005,11.37264,2449.4,2449.1,0.7865]
[1728446415006,4.08264,2449.4,2449.1,0.7865]
[1728446416070,4.08255,2449.5,2449.1,0.7865]
[1728446416366,4.08263,2449.4,2449.1,0.7865]
[1728446418210,4.08296,2449.2,2449.1,0.7865]
[1728446421609,4.08281,2449.3,2449.1,0.7865]
[1728446421800,8.16571,2449.3,2449.1,0.7865]
[1728446424125,4.08296,2449.2,2449.1,0.7865]
[1728446426118,4.08296,2449.2,2448.9,0.8106]
[1728446426497,4.08329,2449.0,2448.9,0.8106]
[1728446426680,4.08347,2448.9,2448.7,0.8106]
[1728446427804,4.08351,2448.9,2448.7,0.8106]
[1728446429021,4.08351,2448.9,2448.6,2.0]
[1728446429022,4.08372,2448.8,2448.6,2.0]
[1728446429526,6.58649656,2448.7,2448.6,2.0]
[1728446431586,7.13649656,2448.7,2448.6,2.0]
[1728446431784,7.17409656,2448.7,2448.6,2.0]
[1728446432927,10.17409656,2448.7,2448.6,2.0]
[1728446433729,10.17409656,2448.7,2446.5,0.89324168]
[1728446433730,0.3833,2447.6,2446.5,0.89324168]
[1728446433940,8.17065,2447.8,2445.7,0.84361288]
[1728446433941,3.9333,2446.2,2445.7,2.98442894]
[1728446434089,9.36864656,2446.1,2445.6,3.91833432]
[1728446434285,11.93155419,2446.1,2445.6,3.91833432]
[1728446434513,12.04155419,2446.1,2445.6,3.91833432]
[1728446434711,11.18515515,2446.1,2445.6,0.93390538]
[1728446434920,10.4453476,2446.1,2445.6,0.93390538]
[1728446435123,12.17585416,2446.1,2445.6,0.93390538]
[1728446435352,10.46934557,2446.1,2445.6,0.93390538]
[1728446435559,10.67862544,2446.1,2445.6,0.93390538]
[1728446435715,11.66701184,2446.1,2445.6,0.93390538]
[1728446435916,11.31331166,2446.1,2445.6,0.93390538]
[1728446436535,12.96513248,2446.1,2445.6,0.93390538]
[1728446437237,13.59660208,2446.1,2445.6,0.93390538]
[1728446437411,12.96513248,2446.1,2445.6,0.93390538]
[1728446437616,13.59660512,2446.1,2445.6,0.93390538]
[1728446437810,12.96513248,2446.1,2445.6,0.93390538]
[1728446438225,13.59566274,2446.1,2445.6,0.93390538]
[1728446438457,8.1865264,2446.1,2445.6,0.93390538]
[1728446438751,7.19814,2446.1,2445.6,0.93390538]
[1728446438955,7.57651817,2446.1,2445.6,0.93390538]
[1728446439451,7.19814,2446.1,2445.6,0.93390538]
[1728446439650,7.74814,2446.1,2445.6,0.93390538]
[1728446439861,7.74814,2446.1,2445.6,1.71930538]
[1728446440251,0.66,2446.1,2445.6,1.71930538]
[1728446440634,4.74814,2446.1,2445.6,1.71930538]
[1728446463184,4.19814,2446.1,2445.6,1.71930538]
[1728446466248,4.74814,2446.1,2445.6,1.71930538]
[1728446466482,4.74814,2446.1,2445.6,0.93390538]
[1728446466702,5.13144,2446.1,2445.6,0.93390538]